bitfinex/quotes_BTCUSD_20220304
["timestamp","ask_amount","ask_price","bid_price","bid_amount"]
[1646357304399,0.18247584,41439.0,41427.0,0.24116451]
[1646357304597,0.18247584,41439.0,41425.0,0.060404]
[1646357304848,0.18247584,41439.0,41421.0,0.5848]
[1646357304849,0.1,41439.0,41421.0,0.5848]
[1646357305052,7.367e-05,41441.0,41422.0,0.237297]
[1646357305249,7.367e-05,41441.0,41422.0,0.1]
[1646357305648,0.02547961,41440.0,41422.0,0.1]
[1646357305849,0.17965666,41433.0,41428.0,0.23880552]
[1646357306049,0.17965666,41433.0,41421.0,0.594465]
[1646357306248,0.17272161,41435.0,41426.0,0.060398]
[1646357306650,0.19673161,41435.0,41426.0,0.060398]
[1646357306850,0.667907,41434.0,41426.0,0.060398]
[1646357307051,0.367907,41434.0,41426.0,0.060398]
[1646357307251,0.367907,41434.0,41426.0,0.29539575]
[1646357307451,0.19973161,41435.0,41426.0,0.29539575]
[1646357307849,0.17572161,41435.0,41426.0,0.29539575]
[1646357308249,0.16303783,41434.0,41426.0,0.29539575]
[1646357308496,0.01204,41436.0,41426.0,0.29539575]
[1646357308700,0.1597858,41443.0,41427.0,0.50274599]
[1646357308895,0.26361,41447.0,41427.0,0.54734599]
[1646357309094,0.26361,41447.0,41427.0,0.281868]
[1646357309297,0.26361,41447.0,41427.0,0.381868]
[1646357309494,0.16025735,41437.0,41427.0,0.381868]
[1646357309698,0.21376207,41439.0,41427.0,0.381868]
[1646357310094,0.21376207,41439.0,41429.0,0.237251]
[1646357311496,7.367e-05,41441.0,41433.0,0.21361861]
[1646357311695,7.367e-05,41441.0,41435.0,0.060391]
[1646357312552,7.367e-05,41441.0,41436.0,0.21623839]
[1646357312755,7.367e-05,41441.0,41435.0,0.060391]
[1646357313354,0.00207367,41441.0,41433.0,0.237223]
[1646357313853,0.00207367,41441.0,41435.0,0.02401]
[1646357314059,0.18526541,41455.0,41442.0,0.00622101]
[1646357314060,0.05,41449.0,41442.0,0.00622101]
[1646357314256,0.01205,41458.0,41443.0,0.281751]
[1646357314457,0.1597254,41458.0,41444.0,0.537139]
[1646357314653,0.03610986,41459.0,41446.0,0.237125]
[1646357314860,0.03610986,41459.0,41448.0,0.237112]
[1646357315054,0.01205,41461.0,41455.0,0.22011568]
[1646357315256,0.1597254,41463.0,41455.0,0.22011568]
[1646357315453,0.03570997,41463.0,41455.0,0.22011568]
[1646357315655,0.01205,41470.0,41456.0,0.3]
[1646357315857,0.03606,41470.0,41457.0,0.0446]
[1646357316105,0.01205,41471.0,41457.0,0.4909207]
[1646357316305,0.01205,41471.0,41457.0,0.2538767]
[1646357316501,0.05,41472.0,41457.0,0.2538767]
[1646357316502,0.06205,41472.0,41457.0,0.2538767]
[1646357316702,0.02401,41471.0,41457.0,0.2538767]
[1646357316904,0.06205,41472.0,41461.0,0.06035]
[1646357317109,1.93640682,41479.0,41473.0,0.23256095]
[1646357317110,0.19552721,41479.0,41473.0,0.23256095]
[1646357317306,0.16128291,41479.0,41473.0,0.23256095]
[1646357317510,0.16128291,41479.0,41465.0,0.236979]
[1646357317707,0.02401,41478.0,41464.0,0.0446]
[1646357317906,0.25998332,41472.0,41464.0,0.0446]
[1646357318112,0.391517,41471.0,41464.0,0.0446]
[1646357318515,0.367907,41469.0,41464.0,0.0446]
[1646357318908,0.25998332,41472.0,41464.0,0.0446]
[1646357319107,0.367907,41471.0,41464.0,0.0446]
[1646357319311,0.25998332,41472.0,41464.0,0.0446]
[1646357319952,0.186591,41472.0,41470.0,0.28907313]
[1646357320156,0.186591,41472.0,41465.0,0.060346]
[1646357320157,0.005,41474.0,41465.0,0.060346]
[1646357320554,0.06189708,41480.0,41465.0,0.060346]
[1646357320555,0.03641747,41480.0,41466.0,0.536984]
[1646357320752,0.03641747,41480.0,41465.0,0.060346]
[1646357320753,0.03641747,41480.0,41465.0,0.10421116]
[1646357321052,0.03641747,41480.0,41465.0,0.10345247]
[1646357321053,0.05985704,41478.0,41465.0,0.10345247]
[1646357321651,0.19782415,41480.0,41469.0,0.2500873]
[1646357322453,0.03641747,41480.0,41470.0,0.236953]
[1646357322652,0.03641747,41480.0,41469.0,0.2500873]
[1646357323052,0.03641747,41480.0,41470.0,0.23695]
[1646357323257,0.0011,41481.0,41472.0,0.236936]
[1646357323508,0.0011,41481.0,41471.0,0.104935]
[1646357323509,0.0011,41481.0,41475.0,0.236917]
[1646357323704,0.0011,41481.0,41476.0,0.0446]
[1646357323903,0.0011,41481.0,41477.0,0.0446]
[1646357324105,0.18402295,41481.0,41478.0,0.0446]
[1646357324304,0.18402295,41481.0,41479.0,0.0446]
[1646357324305,0.0011,41481.0,41479.0,0.0446]
[1646357324520,0.1596567,41492.0,41481.0,0.02401]
[1646357324712,0.001,41493.0,41481.0,0.02401]
[1646357324713,0.001,41493.0,41486.0,0.02401]
[1646357324906,0.001,41493.0,41487.0,0.281429]
[1646357325417,0.001,41493.0,41488.0,0.28174516]
[1646357325608,0.0043,41510.0,41491.0,0.236797]
[1646357325810,0.0043,41510.0,41493.0,0.236783]
[1646357326006,0.0043,41510.0,41495.0,0.26078]
[1646357326205,0.0043,41510.0,41498.0,0.23675]
[1646357326408,0.0043,41510.0,41499.0,0.58862739]
[1646357326409,0.0033,41504.0,41499.0,0.58862739]
[1646357326607,0.0043,41510.0,41501.0,1.35]
[1646357326808,0.0043,41510.0,41503.0,0.236715]
[1646357327007,0.0043,41510.0,41504.0,0.3446]
[1646357327261,0.0043,41510.0,41505.0,0.26071]
[1646357327455,0.0043,41510.0,41506.0,0.605303]
[1646357327653,0.21878454,41517.0,41507.0,1.586687]
[1646357327855,0.0011,41514.0,41508.0,0.3446]
[1646357328058,0.0011,41514.0,41509.0,0.236669]
[1646357328254,0.0011,41514.0,41510.0,0.0446]
[1646357328455,0.0011,41514.0,41511.0,0.236655]
[1646357328657,0.0011,41514.0,41512.0,0.0446]
[1646357328854,0.0011,41514.0,41513.0,0.236642]
[1646357329054,0.0011,41514.0,41513.0,0.281242]
[1646357329355,0.0011,41514.0,41513.0,0.0446]
[1646357329558,0.369007,41514.0,41513.0,0.0446]
[1646357329754,0.8643438,41514.0,41513.0,0.0446]
[1646357329954,0.5643438,41514.0,41507.0,0.002]
[1646357330254,0.57165356,41512.0,41507.0,0.0466]
[1646357330662,0.57165356,41512.0,41507.0,0.0446]
[1646357330663,0.367907,41509.0,41507.0,0.0446]
[1646357331303,0.367907,41511.0,41507.0,0.0446]
[1646357331604,0.367907,41509.0,41507.0,0.0446]
[1646357331906,0.22922617,41512.0,41494.0,0.80616808]
[1646357331907,0.367907,41507.0,41501.0,0.0446]
[1646357332206,0.02547961,41503.0,41496.0,0.0446]
[1646357332402,0.02547961,41503.0,41493.0,0.2644927]
[1646357332403,0.16864259,41498.0,41493.0,0.2644927]
[1646357332602,0.17805732,41500.0,41493.0,0.2644927]
[1646357332806,0.0011,41514.0,41493.0,0.2644927]
[1646357332807,0.12401,41505.0,41493.0,0.2644927]
[1646357333001,0.367907,41504.0,41493.0,0.2644927]
[1646357333206,0.1,41503.0,41493.0,0.2644927]
[1646357333402,0.1,41503.0,41495.0,0.02483]
[1646357333802,0.19934247,41501.0,41495.0,0.02483]
[1646357334746,0.19934247,41501.0,41495.0,0.02183]
[1646357336251,0.39338661,41500.0,41495.0,0.02183]
[1646357336456,0.02547961,41496.0,41495.0,0.02183]
[1646357336651,0.39338661,41496.0,41495.0,0.02183]
[1646357336849,0.49338661,41496.0,41495.0,0.02183]
[1646357337552,0.51182498,41496.0,41495.0,0.02183]
[1646357337751,0.81182498,41496.0,41495.0,0.02183]
[1646357337950,0.02401,41495.0,41481.0,0.25593067]
[1646357338152,0.27705672,41489.0,41481.0,0.25593067]
[1646357338354,0.367907,41488.0,41481.0,0.25593067]
[1646357338596,0.4,41495.0,41481.0,0.25593067]
[1646357338597,0.3,41494.0,41481.0,0.25593067]
[1646357338797,0.1486,41496.0,41481.0,0.25593067]
[1646357338798,0.19649507,41493.0,41481.0,0.31625367]
[1646357338997,0.19649507,41493.0,41482.0,0.236866]
[1646357339596,0.19649507,41493.0,41483.0,0.236856]
[1646357339795,0.19649507,41493.0,41481.0,0.065323]
[1646357339995,0.22878102,41497.0,41481.0,0.065323]
[1646357339996,0.3,41500.0,41482.0,0.23686]
[1646357340198,0.3,41500.0,41481.0,0.065323]
[1646357340199,0.35889729,41508.0,41487.0,0.060309]
[1646357340399,1.3752,41514.0,41489.0,0.02401]
[1646357340400,0.03657469,41509.0,41489.0,0.02401]
[1646357340601,0.08657469,41509.0,41491.0,0.02401]
[1646357340796,0.08657469,41509.0,41492.0,0.236785]
[1646357341004,0.08657469,41509.0,41507.0,0.21395419]
[1646357341005,0.21070833,41508.0,41507.0,0.21395419]
[1646357341205,0.19336409,41511.0,41507.0,0.21395419]
[1646357341206,0.0011,41514.0,41507.0,0.236685]
[1646357341396,0.0011,41514.0,41505.0,0.060287]
[1646357342247,0.17284209,41513.0,41505.0,0.060287]
[1646357342445,0.17284209,41513.0,41506.0,0.236687]
[1646357342647,0.17284209,41513.0,41505.0,0.060287]
[1646357342844,0.17284209,41513.0,41503.0,0.236706]
[1646357343043,0.17284209,41513.0,41502.0,0.120565]
[1646357343244,0.17284209,41513.0,41506.0,0.26339595]
[1646357343447,0.0659557,41511.0,41502.0,0.120565]
[1646357343652,0.0659557,41511.0,41500.0,0.002]
[1646357343653,0.07943531,41511.0,41500.0,0.002]
[1646357344045,0.19238223,41504.0,41500.0,0.002]
[1646357344644,0.19238223,41504.0,41499.0,0.27495521]
[1646357345048,0.02401,41510.0,41499.0,0.27495521]
[1646357345345,0.02401,41510.0,41499.0,0.27795521]
[1646357345346,0.03748961,41510.0,41499.0,0.27795521]
[1646357345549,0.02547961,41510.0,41507.0,0.219141]
[1646357345747,0.12657961,41514.0,41499.0,0.003]
[1646357345996,0.15616084,41511.0,41501.0,0.060289]
[1646357346203,0.34877742,41511.0,41501.0,0.060289]
[1646357346797,0.34877742,41511.0,41504.0,0.26469343]
[1646357346996,0.34877742,41511.0,41501.0,0.060289]
[1646357346997,0.20627312,41504.0,41501.0,0.060289]
[1646357347198,0.20627312,41504.0,41494.0,0.1]
[1646357347199,0.3,41503.0,41494.0,0.1]
[1646357347501,0.19997722,41501.0,41496.0,0.003]
[1646357347998,0.19997722,41501.0,41499.0,0.236744]
[1646357348196,0.19997722,41501.0,41497.0,0.236755]
[1646357349197,0.19997722,41501.0,41494.0,0.1]
[1646357349198,0.3,41500.0,41494.0,0.1]
[1646357349401,0.19905977,41493.0,41492.0,0.001]
[1646357349606,0.56696677,41493.0,41492.0,0.001]
[1646357350078,0.367907,41493.0,41492.0,0.001]
[1646357350675,0.367907,41493.0,41478.0,0.3]
[1646357350872,0.02547961,41495.0,41482.0,0.060315]
[1646357351071,0.18392857,41493.0,41482.0,0.060315]
[1646357352076,0.02547961,41492.0,41478.0,0.004]
[1646357352274,0.18392857,41493.0,41478.0,0.004]
[1646357352275,0.02547961,41488.0,41478.0,0.004]
[1646357352477,0.367907,41487.0,41478.0,0.004]
[1646357352674,0.367907,41486.0,41477.0,0.22949667]
[1646357352873,0.02547961,41488.0,41477.0,0.22949667]
[1646357353073,0.20740423,41485.0,41477.0,0.22949667]
[1646357353275,0.20740423,41485.0,41474.0,0.3]
[1646357354100,0.20740423,41485.0,41472.0,1.4504611]
[1646357354297,0.20740423,41485.0,41472.0,0.002]
[1646357354502,0.02547961,41479.0,41472.0,0.002]
[1646357354700,0.02547961,41482.0,41466.0,1.212]
[1646357355098,0.02547961,41482.0,41467.0,0.3]
[1646357355300,0.02547961,41482.0,41477.0,0.28961525]
[1646357355498,0.367907,41481.0,41469.0,0.7368]
[1646357355699,0.04948961,41482.0,41469.0,0.7368]
[1646357356501,0.02547961,41482.0,41469.0,0.7368]
[1646357356708,0.20740423,41485.0,41477.0,0.27584942]
[1646357356903,0.367907,41484.0,41477.0,0.27584942]
[1646357357350,0.15,41489.0,41477.0,0.27584942]
[1646357357647,0.16156245,41487.0,41477.0,0.27584942]
[1646357357845,0.02547961,41487.0,41477.0,0.27584942]
[1646357358245,0.21323621,41486.0,41477.0,0.27584942]
[1646357358546,0.367907,41485.0,41477.0,0.27584942]
[1646357358743,0.21323621,41486.0,41477.0,0.27584942]
[1646357358945,0.367907,41484.0,41477.0,0.27584942]
[1646357359147,0.31323621,41486.0,41477.0,0.27584942]
[1646357359348,0.21523621,41486.0,41477.0,0.27584942]
[1646357359546,0.21523621,41486.0,41472.0,0.001]
[1646357360045,0.15994841,41484.0,41472.0,0.001]
[1646357360245,0.23924621,41486.0,41472.0,0.001]
[1646357360445,0.21523621,41486.0,41472.0,0.001]
[1646357360645,0.21323621,41486.0,41470.0,0.3]
[1646357360857,0.21815882,41471.0,41469.0,0.7318]
[1646357361118,0.29281203,41491.0,41474.0,0.53196191]
[1646357361119,0.367907,41475.0,41474.0,0.53196191]
[1646357361713,0.467907,41475.0,41474.0,0.53196191]
[1646357361915,0.80440924,41475.0,41474.0,0.53196191]
[1646357362117,0.80440924,41475.0,41474.0,0.48486191]
[1646357362118,0.96911146,41475.0,41474.0,0.48486191]
[1646357362313,0.96911146,41475.0,41474.0,0.45796911]
[1646357362913,1.03542357,41475.0,41474.0,0.45796911]
[1646357363111,1.33542357,41475.0,41474.0,0.45796911]
[1646357363313,1.33634068,41475.0,41474.0,0.45796911]
[1646357363513,1.33634068,41475.0,41474.0,0.42296911]
[1646357364942,1.33634068,41475.0,41474.0,0.30409444]
[1646357365144,1.33634068,41475.0,41466.0,0.001]
[1646357365145,0.058362,41467.0,41466.0,0.001]
[1646357365345,0.817907,41467.0,41466.0,0.001]
[1646357365544,0.517907,41467.0,41466.0,0.001]
[1646357365843,0.617907,41467.0,41466.0,0.001]
[1646357366246,0.917907,41467.0,41466.0,0.001]
[1646357366444,0.98734366,41467.0,41466.0,0.001]
[1646357366848,1.15596923,41467.0,41458.0,0.001]
[1646357367051,0.02547961,41460.0,41458.0,0.001]
[1646357367248,0.1,41466.0,41458.0,0.001]
[1646357367249,0.12547961,41466.0,41458.0,0.001]
[1646357367747,0.367907,41465.0,41458.0,0.001]
[1646357368348,0.30017912,41466.0,41458.0,0.001]
[1646357368597,0.367907,41465.0,41458.0,0.001]
[1646357368796,0.23931043,41463.0,41458.0,0.001]
[1646357369011,0.367907,41462.0,41458.0,0.001]
[1646357369200,0.367907,41464.0,41458.0,0.001]
[1646357369398,0.20017912,41466.0,41458.0,0.001]
[1646357369399,0.21006022,41461.0,41458.0,0.001]
[1646357369604,0.367907,41460.0,41458.0,0.001]
[1646357369997,0.21006022,41461.0,41458.0,0.001]
[1646357370198,0.367907,41460.0,41458.0,0.001]
[1646357370398,0.21006022,41461.0,41458.0,0.001]
[1646357370599,0.367907,41460.0,41458.0,0.001]
[1646357370800,0.367907,41459.0,41458.0,0.001]
[1646357371201,0.00091711,41462.0,41458.0,0.001]
[1646357371402,0.005,41459.0,41458.0,0.001]
[1646357371800,0.005,41459.0,41458.0,0.238044]
[1646357372754,0.00091711,41462.0,41458.0,0.001]
[1646357372952,0.00091711,41462.0,41459.0,0.237038]
[1646357373558,0.05,41476.0,41462.0,0.237007]
[1646357373754,0.02547961,41482.0,41464.0,0.15]
[1646357373955,0.03551218,41484.0,41465.0,0.536983]
[1646357374154,0.00091711,41481.0,41465.0,0.3]
[1646357374355,0.17690257,41478.0,41470.0,0.25186082]
[1646357374554,0.19053041,41476.0,41470.0,0.25186082]
[1646357375455,0.19353041,41476.0,41470.0,0.25186082]
[1646357376700,0.00091711,41481.0,41470.0,0.25186082]
[1646357377302,0.00091711,41481.0,41474.0,0.236923]
[1646357377507,0.00091711,41481.0,41476.0,0.23691]
[1646357377704,0.00091711,41481.0,41475.0,0.3]
[1646357378103,0.00091711,41483.0,41475.0,0.3]
[1646357378503,0.00091711,41483.0,41474.0,0.3]
[1646357378704,0.00091711,41483.0,41473.0,0.21691962]
[1646357378906,0.00091711,41483.0,41470.0,0.25186082]
[1646357378907,0.06483358,41477.0,41470.0,0.25186082]
[1646357379107,0.00091711,41483.0,41463.0,0.1946]
[1646357379108,0.02547961,41480.0,41463.0,0.1946]
[1646357379305,0.04948961,41480.0,41463.0,0.2946]
[1646357379512,0.367907,41467.0,41453.0,1.195832]
[1646357379754,0.367907,41467.0,41458.0,0.001]
[1646357379755,0.1,41466.0,41458.0,0.001]
[1646357379953,0.18965227,41463.0,41458.0,0.001]
[1646357380162,0.60912514,41462.0,41458.0,0.001]
[1646357380454,0.367907,41462.0,41458.0,0.001]
[1646357380653,0.367507,41462.0,41458.0,0.001]
[1646357381154,0.367883,41462.0,41458.0,0.001]
[1646357381355,0.00091711,41461.0,41458.0,0.001]
[1646357383067,0.00091711,41461.0,41460.0,0.02401]
[1646357383259,0.31628141,41477.0,41461.0,1.35]
[1646357383499,0.31628141,41477.0,41461.0,1.3946]
[1646357383500,0.02547961,41472.0,41461.0,1.3946]
[1646357383698,0.1812012,41465.0,41461.0,0.0446]
[1646357384200,0.367883,41464.0,41458.0,0.001]
[1646357384399,0.367883,41461.0,41458.0,0.001]
[1646357384997,0.54151406,41461.0,41458.0,0.001]
[1646357385402,0.367883,41461.0,41458.0,0.001]
[1646357385801,0.367883,41459.0,41458.0,0.001]
[1646357386198,0.56644801,41459.0,41458.0,0.001]
[1646357386802,0.56644682,41459.0,41458.0,0.001]
[1646357386999,0.57040566,41459.0,41458.0,0.001]
[1646357387445,0.57039971,41459.0,41458.0,0.001]
[1646357388052,0.37184184,41459.0,41458.0,0.001]
[1646357388247,0.367883,41459.0,41458.0,0.001]
[1646357388845,0.58503636,41459.0,41458.0,0.001]
[1646357389045,0.367883,41459.0,41458.0,0.001]
[1646357389447,0.372883,41459.0,41458.0,0.001]
[1646357390448,7.912083,41453.0,41451.0,0.001]
[1646357390754,0.367883,41452.0,41451.0,0.001]
[1646357391194,8.30770413,41453.0,41451.0,0.001]
[1646357391195,8.11091913,41453.0,41451.0,0.001]
[1646357392594,7.912083,41453.0,41451.0,0.001]
[1646357392999,7.912083,41453.0,41452.0,0.237493]
[1646357393204,7.01775361,41453.0,41452.0,0.261503]
[1646357393405,7.01775361,41453.0,41452.0,0.468153]
[1646357393599,7.01775361,41453.0,41452.0,0.6428192]
[1646357393600,6.61957761,41453.0,41452.0,0.6428192]
[1646357393798,0.03606772,41472.0,41457.0,0.084359]
[1646357394001,0.5,41478.0,41459.0,0.02401]
[1646357394205,0.5,41478.0,41464.0,0.02401]
[1646357394401,0.5,41478.0,41469.0,0.261372]
[1646357394603,0.35,41488.0,41471.0,0.02401]
[1646357394861,0.18335831,41486.0,41473.0,0.02401]
[1646357395060,0.35,41488.0,41475.0,0.02401]
[1646357395061,0.05,41488.0,41475.0,0.02401]
[1646357395262,0.05,41488.0,41478.0,0.17401]
[1646357395461,0.001,41494.0,41479.0,0.54112688]
[1646357395760,0.001,41494.0,41478.0,0.17401]
[1646357395761,0.02647961,41494.0,41478.0,0.02401]
[1646357395965,0.02647961,41494.0,41489.0,0.271138]
[1646357396164,0.001,41494.0,41477.0,0.246944]
[1646357396360,0.001,41494.0,41477.0,0.346944]
[1646357396560,0.001,41494.0,41477.0,0.381889]
[1646357396760,0.18984385,41493.0,41478.0,0.18118621]
[1646357396959,0.18984385,41493.0,41480.0,0.261289]
[1646357397159,0.001,41494.0,41480.0,0.261289]
[1646357397361,0.001,41494.0,41489.0,0.24139837]
[1646357397762,0.001,41494.0,41482.0,0.42784788]
[1646357397959,0.001,41494.0,41483.0,0.237253]
[1646357398160,0.15824751,41494.0,41483.0,0.237253]
[1646357398607,0.001,41494.0,41483.0,0.237253]
[1646357398806,0.001,41494.0,41485.0,0.060308]
[1646357399007,0.001,41494.0,41486.0,0.58567588]
[1646357399205,0.001,41494.0,41487.0,0.27401]
[1646357399405,0.001,41494.0,41489.0,0.02401]
[1646357399606,0.001,41494.0,41490.0,0.58607124]
[1646357400012,0.051,41501.0,41495.0,0.237174]
[1646357400213,0.0011,41504.0,41500.0,0.237139]
[1646357400406,0.0011,41504.0,41499.0,0.02401]
[1646357400407,0.0011,41504.0,41502.0,0.02401]
[1646357400610,0.0011,41504.0,41503.0,0.237119]
[1646357402013,0.2104804,41504.0,41502.0,0.0446]
[1646357402251,0.0011,41504.0,41502.0,0.0446]
[1646357403649,0.367883,41503.0,41502.0,0.0446]
[1646357403852,0.0011,41504.0,41502.0,0.0446]
[1646357404550,0.0011,41504.0,41503.0,0.22667897]
[1646357405857,0.0011,41504.0,41503.0,0.46379797]
[1646357406695,0.0011,41504.0,41503.0,0.50839797]
[1646357406895,0.0011,41504.0,41503.0,0.281719]
[1646357407397,0.0011,41504.0,41503.0,0.0446]
[1646357407599,0.368983,41504.0,41503.0,0.0446]
[1646357407795,0.0011,41504.0,41503.0,0.0446]
[1646357408597,0.0011,41504.0,41501.0,0.0446]
[1646357408996,0.0011,41504.0,41502.0,0.39626847]
[1646357409200,0.0011,41504.0,41502.0,0.31828494]
[1646357409397,0.0011,41504.0,41503.0,0.237119]
[1646357409596,0.0011,41504.0,41503.0,0.54095688]
[1646357410056,0.0011,41504.0,41503.0,0.54056025]
[1646357410657,0.0011,41504.0,41503.0,0.23672237]
[1646357411558,0.0011,41504.0,41503.0,0.240731]
[1646357412157,0.0011,41504.0,41503.0,0.004]
[1646357412359,0.17545824,41504.0,41503.0,0.004]
[1646357412958,0.0011,41504.0,41502.0,0.31828494]
[1646357414195,0.0011,41504.0,41501.0,0.2511782]
[1646357414399,0.0011,41504.0,41503.0,0.15914247]
[1646357415000,0.368921,41504.0,41503.0,0.15914247]
[1646357415198,0.57734707,41504.0,41503.0,0.15914247]
[1646357415397,0.55186746,41504.0,41503.0,0.15914247]
[1646357415797,0.7803553,41504.0,41503.0,0.15914247]
[1646357417002,0.55186746,41504.0,41503.0,0.15914247]
[1646357417746,0.368521,41504.0,41503.0,0.15914247]
[1646357418349,0.0007,41504.0,41503.0,0.15914247]
[1646357419554,0.368521,41504.0,41503.0,0.15914247]
[1646357419750,0.56261375,41504.0,41503.0,0.31828494]
[1646357420353,0.0007,41504.0,41503.0,0.31828494]
[1646357421607,0.0007,41504.0,41503.0,0.55501594]
[1646357422405,0.0007,41504.0,41503.0,0.31828494]
[1646357422605,0.0007,41504.0,41503.0,0.55501594]
[1646357423207,0.0007,41504.0,41503.0,0.31828494]
[1646357423605,0.0007,41504.0,41503.0,0.32028494]
[1646357424764,0.002,41508.0,41503.0,0.32028494]
[1646357424962,0.002,41508.0,41503.0,0.15914247]
[1646357425159,0.002,41508.0,41499.0,0.29909551]
[1646357425361,0.16625051,41507.0,41506.0,0.15914247]
[1646357425563,0.52907151,41507.0,41506.0,0.15914247]
[1646357426361,0.76839363,41507.0,41506.0,0.15914247]
[1646357426765,0.52907151,41507.0,41506.0,0.15914247]
[1646357427162,0.002,41508.0,41506.0,0.15914247]
[1646357429410,0.002,41508.0,41489.0,0.0446]
[1646357429411,1.74330061,41507.0,41489.0,0.0446]
[1646357429615,1.74330061,41507.0,41487.0,0.7544]
[1646357429616,0.15,41501.0,41487.0,0.7544]
[1646357429809,0.367821,41495.0,41484.0,0.7291]
[1646357430014,0.30383788,41500.0,41478.0,0.15]
[1646357430409,0.17354227,41497.0,41483.0,0.16150906]
[1646357430611,0.30383788,41500.0,41489.0,0.20725793]
[1646357430814,0.02547961,41500.0,41489.0,0.20725793]
[1646357431013,0.152,41508.0,41490.0,0.236816]
[1646357431309,0.152,41508.0,41489.0,0.20725793]
[1646357431511,0.43525242,41505.0,41490.0,0.17642741]
[1646357431711,0.43525242,41505.0,41490.0,0.41324241]
[1646357431712,0.18538058,41505.0,41490.0,0.41324241]
[1646357432013,0.19767394,41504.0,41490.0,0.41324241]
[1646357432248,0.18538058,41505.0,41490.0,0.41324241]
[1646357432850,0.39578156,41505.0,41490.0,0.41324241]
[1646357433251,0.052,41508.0,41490.0,0.43725241]
[1646357433456,0.052,41508.0,41493.0,0.02401]
[1646357433652,0.052,41508.0,41496.0,0.260785]
[1646357433851,0.002,41508.0,41498.0,0.236762]
[1646357434053,0.002,41508.0,41499.0,0.0446]
[1646357434251,0.002,41508.0,41501.0,0.02401]
[1646357434451,0.002,41508.0,41502.0,0.281335]
[1646357434852,0.0032,41518.0,41502.0,0.281335]
[1646357435056,0.0032,41525.0,41516.0,0.02401]
[1646357435361,0.0032,41528.0,41516.0,0.02401]
[1646357435362,0.0032,41528.0,41520.0,0.02401]
[1646357435553,0.0032,41528.0,41518.0,0.15]
[1646357435554,0.0032,41528.0,41522.0,0.02401]
[1646357435752,0.0032,41528.0,41525.0,0.26058]
[1646357435999,0.0032,41528.0,41527.0,0.236556]
[1646357436199,0.0032,41528.0,41527.0,0.281156]
[1646357437798,0.0032,41528.0,41527.0,0.236556]
[1646357438009,0.0032,41528.0,41521.0,0.0446]
[1646357438600,0.58669545,41527.0,41521.0,0.0446]
[1646357438802,0.58669545,41527.0,41512.0,0.0446]
[1646357438803,0.1998912,41518.0,41512.0,0.0446]
[1646357439000,0.1998912,41518.0,41507.0,0.0446]
[1646357439001,0.367821,41517.0,41507.0,0.0446]
[1646357439206,0.1998912,41518.0,41507.0,0.0446]
[1646357439399,0.19593152,41515.0,41507.0,0.0446]
[1646357439602,0.1998912,41518.0,41507.0,0.0446]
[1646357439857,0.1998912,41518.0,41508.0,0.27939901]
[1646357440257,0.1998912,41518.0,41508.0,0.32399901]
[1646357442058,0.1998912,41518.0,41509.0,0.236682]
[1646357443712,0.17113368,41511.0,41509.0,0.236682]
[1646357443910,0.19571636,41520.0,41504.0,0.003]
[1646357444112,0.02547961,41518.0,41504.0,0.103]
[1646357444312,0.19571636,41520.0,41505.0,0.236709]
[1646357444510,0.19571636,41520.0,41505.0,0.236707]
[1646357444710,0.16023675,41520.0,41510.0,0.21020194]
[1646357444910,0.21029278,41513.0,41503.0,0.1446]
[1646357445109,0.21029278,41513.0,41504.0,0.236712]
[1646357446122,0.21029278,41513.0,41503.0,0.104]
[1646357446123,0.2152015,41505.0,41503.0,0.004]
[1646357446315,0.2152015,41505.0,41503.0,0.00323381]
[1646357446513,0.367821,41504.0,41503.0,0.00167691]
[1646357446715,0.2152015,41505.0,41503.0,0.00167691]
[1646357446915,0.02547961,41512.0,41492.0,0.31500426]
[1646357447112,0.02547961,41512.0,41504.0,0.23806315]
[1646357447347,0.18259056,41508.0,41492.0,0.31500426]
[1646357447547,0.18259056,41508.0,41493.0,0.336787]
[1646357447948,0.20901634,41502.0,41493.0,0.336787]
[1646357448151,0.20901634,41502.0,41494.0,0.236788]
[1646357448662,0.30296426,41501.0,41492.0,0.01604]
[1646357448853,0.02547961,41500.0,41492.0,0.01204]
[1646357449251,0.02547961,41500.0,41483.0,0.23686]
[1646357449252,0.21324964,41493.0,41483.0,0.23686]
[1646357449450,0.21324964,41493.0,41481.0,0.02575871]
[1646357449451,0.21324964,41493.0,41485.0,0.236858]
[1646357449649,0.02547961,41500.0,41492.0,0.002]
[1646357450650,0.19822771,41498.0,41492.0,0.002]
[1646357450849,0.19822771,41498.0,41482.0,0.01205]
[1646357450850,0.19822771,41498.0,41482.0,0.236871]
[1646357451305,0.19822771,41498.0,41490.0,0.20386419]
[1646357451898,0.21668564,41496.0,41482.0,0.236869]
[1646357452099,0.30296426,41497.0,41482.0,0.236869]
[1646357452298,0.19822771,41498.0,41483.0,0.02401]
[1646357452499,0.19822771,41498.0,41481.0,0.08606671]
[1646357452702,0.19822771,41498.0,41482.0,0.236873]
[1646357452899,0.19822771,41498.0,41488.0,0.28688429]
[1646357453302,0.20251162,41496.0,41488.0,0.28688429]
[1646357453701,0.20251162,41496.0,41488.0,0.28988429]
[1646357454953,0.19822771,41498.0,41488.0,0.28688429]
[1646357455653,0.19822771,41498.0,41488.0,0.28988429]
[1646357455850,0.3692279,41498.0,41488.0,0.28988429]
[1646357456051,0.19822771,41498.0,41488.0,0.28988429]
[1646357456454,0.19822771,41498.0,41489.0,0.236828]
[1646357456850,0.19822771,41498.0,41488.0,0.28988429]
[1646357457050,0.17150479,41497.0,41488.0,0.28988429]
[1646357457252,0.19822771,41498.0,41488.0,0.28988429]
[1646357457650,0.19822771,41498.0,41488.0,0.29288429]
[1646357458052,0.19822771,41498.0,41488.0,0.006]
[1646357458256,0.39330061,41492.0,41488.0,0.006]
[1646357458506,0.39330061,41490.0,41488.0,0.006]
[1646357458710,0.1,41489.0,41488.0,0.006]